lending/lending_fUSD_20250425
["ID","MTS","AMOUNT","RATE_DAILY","PERIOD"]
[358973427,1745596261518,-500.0,0.0003589,2]
[358973428,1745596261528,-500.0,0.0003589,2]
[358973429,1745596261538,-1075.39,0.0003589,2]
[358973430,1745596261548,-500.0,0.0003589,2]
[358973431,1745596261560,-524.69799268,0.0003589,2]
[358973432,1745596261570,-500.0,0.0003589,2]
[358973433,1745596261580,-500.0,0.0003589,2]
[358973434,1745596261590,-500.0,0.0003589,2]
[358973435,1745596261600,-1092.71,0.0003589,2]
[358973436,1745596261610,-500.0,0.0003589,2]
[358973437,1745596261620,-500.0,0.0003589,2]
[358973438,1745596261632,-965.29,0.0003589,2]
[358973439,1745596261643,-500.0,0.0003589,2]
[358973440,1745596261653,-500.0,0.0003589,2]
[358973441,1745596261663,-500.0,0.0003589,2]
[358973442,1745596261673,-594.25,0.0003589,2]
[358973443,1745596261687,-500.0,0.0003589,2]
[358973444,1745596261700,-500.0,0.0003589,2]
[358973445,1745596261712,-500.0,0.0003589,2]
[358973446,1745596261722,-1174.49,0.0003589,2]
[358973447,1745596261731,-500.0,0.0003589,2]
[358973448,1745596261741,-500.0,0.0003589,2]
[358973449,1745596261751,-500.0,0.0003589,2]
[358973450,1745596261761,-500.0,0.0003589,2]
[358973451,1745596261770,-151.0,0.0003589,7]
[358973452,1745596261781,-500.0,0.0003589,2]
[358973453,1745596261791,-525.69,0.0003589,2]
[358973454,1745596261802,-500.0,0.0003589,2]
[358973455,1745596261812,-773.16,0.0003589,2]
[358973456,1745596261822,-500.0,0.0003589,2]
[358973457,1745596261832,-650.78,0.0003589,2]
[358973458,1745596261842,-154.213775,0.0003589,7]
[358973459,1745596261854,-500.0,0.0003589,2]
[358973460,1745596261864,-500.0,0.0003589,2]
[358973461,1745596261874,-1147.390115,0.0003589,2]
[358973462,1745596261883,-500.0,0.0003589,2]
[358973463,1745596261894,-500.0,0.0003589,2]
[358973464,1745596261904,-515.42751159,0.0003589,2]
[358973465,1745596261914,-500.0,0.0003589,2]
[358973466,1745596261923,-151.0,0.0003589,7]
[358973467,1745596261935,-500.0,0.0003589,2]
[358973468,1745596261945,-151.0,0.0003589,7]
[358973469,1745596261954,-151.0,0.0003589,7]
[358973470,1745596261964,-1144.66,0.0003589,2]
[358973471,1745596261973,-500.0,0.0003589,2]
[358973472,1745596261983,-500.0,0.0003589,2]
[358973473,1745596261993,-500.0,0.0003589,2]
[358973474,1745596262003,-559.33585552,0.0003589,2]
[358973475,1745596262013,-500.0,0.0003589,2]
[358973476,1745596262024,-500.0,0.0003589,2]
[358973477,1745596262033,-500.0,0.0003589,2]
[358973478,1745596262045,-855.9,0.0003589,2]
[358973479,1745596262055,-500.0,0.0003589,2]
[358973480,1745596262066,-500.0,0.0003589,2]
[358973481,1745596262075,-570.04,0.0003589,2]
[358973482,1745596262084,-500.0,0.0003589,2]
[358973483,1745596262094,-500.0,0.0003589,2]
[358973484,1745596262105,-559.24645787,0.0003589,2]
[358973485,1745596262114,-698.43,0.0003589,2]
[358973486,1745596262124,-500.0,0.0003589,2]
[358973487,1745596262133,-500.0,0.0003589,2]
[358973488,1745596262143,-500.0,0.0003589,2]
[358973489,1745596262153,-151.0,0.0003589,7]
[358973490,1745596262163,-576.79037512,0.0003589,2]
[358973491,1745596262173,-500.0,0.0003589,2]
[358973492,1745596262185,-847.65,0.0003589,2]
[358973493,1745596262195,-1186.74338,0.0003589,2]
[358973494,1745596262205,-500.0,0.0003589,2]
[358973495,1745596262214,-500.0,0.0003589,2]
[358973496,1745596262224,-500.0,0.0003589,2]
[358973497,1745596262233,-151.0,0.0003589,7]
[358973498,1745596262243,-500.0,0.0003589,2]
[358973499,1745596262254,-242.15681345,0.0003589,2]
[358973500,1745596262263,-500.0,0.0003589,2]
[358973501,1745596262273,-500.0,0.0003589,2]
[358973502,1745596262282,-500.0,0.0003589,2]
[358973503,1745596262291,-500.0,0.0003589,2]
[358973504,1745596262301,-520.78,0.0003589,2]
[358973505,1745596262310,-500.0,0.0003589,2]
[358973506,1745596262320,-641.57,0.0003589,2]
[358973507,1745596262330,-500.0,0.0003589,2]
[358973508,1745596262340,-151.0,0.0003589,7]
[358973509,1745596262350,-520.45,0.0003589,2]
[358973510,1745596262360,-500.0,0.0003589,2]
[358973511,1745596262370,-845.23,0.0003589,2]
[358973512,1745596262382,-797.02,0.0003589,2]
[358973513,1745596262392,-500.0,0.0003589,2]
[358973514,1745596262403,-500.0,0.0003589,2]
[358973515,1745596262414,-500.0,0.0003589,2]
[358973516,1745596262425,-1185.34,0.0003589,2]
[358973517,1745596262435,-500.0,0.0003589,2]
[358973518,1745596262444,-500.0,0.0003589,2]
[358973519,1745596262454,-172.80660913,0.0003589,2]
[358973520,1745596262464,-500.0,0.0003589,2]
[358973521,1745596262474,-500.0,0.0003589,2]
[358973522,1745596262485,-585.95866082,0.0003589,2]
[358973523,1745596262495,-500.0,0.0003589,2]
[358973524,1745596262504,-500.0,0.0003589,2]
[358973525,1745596262514,-707.65,0.0003589,2]
[358973526,1745596262524,-500.0,0.0003589,2]
[358973527,1745596262534,-509.39,0.0003589,2]
[358973528,1745596262544,-500.0,0.0003589,2]
[358973529,1745596262554,-500.0,0.0003589,2]
[358973530,1745596262564,-569.90314377,0.0003589,2]
[358973531,1745596262575,-500.0,0.0003589,2]
[358973532,1745596262585,-590.87207911,0.0003589,2]
[358973533,1745596262595,-511.30064413,0.0003589,2]
[358973534,1745596262607,-500.0,0.0003589,2]
[358973535,1745596262618,-500.0,0.0003589,2]
[358973536,1745596262628,-902.14,0.0003589,2]
[358973537,1745596262639,-500.0,0.0003589,2]
[358973538,1745596262649,-500.0,0.0003589,2]
[358973539,1745596262659,-500.0,0.0003589,2]
[358973540,1745596262668,-500.0,0.0003589,2]
[358973541,1745596262679,-500.0,0.0003589,2]
[358973542,1745596262691,-500.0,0.0003589,2]
[358973543,1745596262711,-1260.11,0.0003589,2]
[358973544,1745596262732,-729.86,0.0003589,2]
[358973545,1745596262754,-966.74,0.0003589,2]
[358973546,1745596262774,-607.12,0.0003589,2]
[358973547,1745596262795,-500.0,0.0003589,2]
[358973548,1745596262816,-500.0,0.0003589,2]
[358973549,1745596262838,-737.09,0.0003589,2]
[358973550,1745596262860,-500.0,0.0003589,2]
[358973551,1745596262882,-500.0,0.0003589,2]
[358973552,1745596262901,-1114.74,0.0003589,2]
[358973553,1745596262923,-1161.27,0.0003589,2]
[358973554,1745596262946,-1337.81,0.0003589,2]
[358973555,1745596262967,-500.0,0.0003589,2]
[358973556,1745596262990,-500.0,0.0003589,2]
[358973557,1745596263011,-329.9151587,0.0003589,2]
[358973558,1745596263034,-500.0,0.0003589,2]
[358973559,1745596263055,-500.0,0.0003589,2]
[358973560,1745596263077,-500.0,0.0003589,2]
[358973561,1745596263097,-534.91,0.0003589,2]
[358973562,1745596263119,-753.54,0.0003589,2]
[358973563,1745596263141,-629.59,0.0003589,2]
[358973564,1745596263163,-581.58012516,0.0003589,2]
[358973565,1745596263174,-826.01,0.0003589,2]
[358973566,1745596263186,-500.0,0.0003589,2]
[358973567,1745596263196,-500.0,0.0003589,2]
[358973568,1745596263205,-500.0,0.0003589,2]
[358973569,1745596263215,-500.0,0.0003589,2]
[358973570,1745596263225,-500.0,0.0003589,2]
[358973571,1745596263234,-595.76,0.0003589,2]
[358973572,1745596263244,-500.0,0.0003589,2]
[358973573,1745596263254,-500.0,0.0003589,2]
[358973574,1745596263264,-500.0,0.0003589,2]
[358973575,1745596263274,-500.0,0.0003589,2]
[358973576,1745596263284,-500.0,0.0003589,2]
[358973577,1745596263293,-500.0,0.0003589,2]
[358973578,1745596263303,-500.0,0.0003589,2]
[358973579,1745596263313,-500.0,0.0003589,2]
[358973580,1745596263323,-500.0,0.0003589,2]
[358973581,1745596263332,-500.0,0.0003589,2]
[358973582,1745596263342,-531.57118819,0.0003589,2]
[358973583,1745596263352,-510.80008431,0.0003589,2]
[358973584,1745596263362,-987.63,0.0003589,2]
[358973585,1745596263372,-500.0,0.0003589,2]
[358973586,1745596263382,-513.73,0.0003589,2]
[358973587,1745596263391,-525.30867834,0.0003589,2]
[358973588,1745596263402,-517.86,0.0003589,2]
[358973589,1745596263412,-500.0,0.0003589,2]
[358973590,1745596263423,-1023.24,0.0003589,2]
[358973591,1745596263436,-500.0,0.0003589,2]
[358973592,1745596263446,-511.12461942,0.0003589,2]
[358973593,1745596263456,-2726.69,0.0003589,2]
[358973594,1745596263466,-151.0,0.0003589,7]
[358973595,1745596263476,-6666.66,0.0003589,2]
[358973596,1745596263487,-500.0,0.0003589,2]
[358973597,1745596263497,-1358.99,0.0003589,2]
[358973598,1745596263507,-500.0,0.0003589,2]
[358973599,1745596263517,-500.0,0.0003589,2]
[358973600,1745596263527,-500.0,0.0003589,2]
[358973601,1745596263537,-596.37,0.0003589,2]
[358973602,1745596263547,-500.0,0.0003589,2]
[358973603,1745596263556,-500.0,0.0003589,2]
[358973604,1745596263566,-1022.7,0.0003589,2]
[358973605,1745596263576,-151.0,0.0003589,7]
[358973606,1745596263586,-500.0,0.0003589,2]
[358973607,1745596263596,-500.0,0.0003589,2]
[358973608,1745596263606,-500.0,0.0003589,2]
[358973609,1745596263616,-500.0,0.0003589,2]
[358973610,1745596263626,-500.0,0.0003589,2]
[358973611,1745596263636,-1201.7,0.0003589,2]
[358973612,1745596263646,-1023.5,0.0003589,2]
[358973613,1745596263656,-793.11,0.0003589,2]
[358973614,1745596263666,-459.12295147,0.0003589,2]
[358973615,1745596263676,-500.0,0.0003589,2]
[358973616,1745596263688,-522.94,0.0003589,2]
[358973617,1745596263700,-151.0,0.0003589,7]
[358973618,1745596263710,-625.0,0.0003589,2]
[358973619,1745596263720,-1068.57,0.0003589,2]
[358973620,1745596263730,-500.0,0.0003589,2]
[358973621,1745596263740,-151.0,0.0003589,7]
[358973622,1745596263751,-500.0,0.0003589,2]
[358973623,1745596263760,-500.0,0.0003589,2]
[358973624,1745596263770,-151.0,0.0003589,7]
[358973625,1745596263782,-500.0,0.0003589,2]
[358973626,1745596263793,-503.04,0.0003589,2]
[358973627,1745596263803,-547.41124606,0.0003589,2]
[358973628,1745596263812,-587.37648499,0.0003589,2]
[358973629,1745596263822,-500.0,0.0003589,2]
[358973630,1745596263832,-1103.29,0.0003589,2]
[358973631,1745596263842,-881.92,0.0003589,2]
[358973632,1745596263852,-500.0,0.0003589,2]
[358973633,1745596263861,-500.0,0.0003589,2]
[358973634,1745596263871,-1018.79,0.0003589,2]
[358973635,1745596263881,-500.0,0.0003589,2]
[358973636,1745596263890,-518.19,0.0003589,2]
[358973637,1745596263900,-500.0,0.0003589,2]
[358973638,1745596263909,-598.96594199,0.0003589,2]
[358973639,1745596263919,-500.0,0.0003589,2]
[358973640,1745596263931,-500.0,0.0003589,2]
[358973641,1745596263942,-1002.85,0.0003589,2]
[358973642,1745596263952,-664.41,0.0003589,2]
[358973643,1745596263962,-973.77,0.0003589,2]
[358973644,1745596263973,-1010.9,0.0003589,2]
[358973645,1745596263983,-151.0,0.0003589,7]
[358973646,1745596263993,-537.48670232,0.0003589,2]
[358973647,1745596264003,-500.0,0.0003589,2]
[358973648,1745596264013,-151.0,0.0003589,7]
[358973649,1745596264023,-933.52,0.0003589,2]
[358973650,1745596264034,-500.0,0.0003589,2]
[358973651,1745596264044,-500.0,0.0003589,2]
[358973652,1745596264054,-522.59,0.0003589,2]
[358973653,1745596264064,-750.39,0.0003589,2]
[358973654,1745596264075,-754.52,0.0003589,2]
[358973655,1745596264085,-461.12707489,0.0003589,2]
[358973656,1745596264095,-151.0,0.0003589,7]
[358973657,1745596264105,-908.62,0.0003589,2]
[358973658,1745596264115,-1059.8,0.0003589,2]
[358973659,1745596264125,-500.0,0.0003589,2]
[358973660,1745596264135,-500.0,0.0003589,2]
[358973661,1745596264144,-760.95,0.0003589,2]
[358973662,1745596264154,-500.0,0.0003589,2]
[358973663,1745596264164,-500.0,0.0003589,2]
[358973664,1745596264175,-957.32,0.0003589,2]
[358973665,1745596264186,-500.0,0.0003589,2]
[358973666,1745596264196,-813.21,0.0003589,2]
[358973667,1745596264207,-151.0,0.0003589,7]
[358973668,1745596264217,-500.0,0.0003589,2]
[358973669,1745596264227,-500.0,0.0003589,2]
[358973670,1745596264237,-793.45,0.0003589,2]
[358973671,1745596264248,-151.0,0.0003589,7]
[358973672,1745596264259,-1101.22,0.0003589,2]
[358973673,1745596264269,-525.37,0.0003589,2]
[358973674,1745596264279,-500.0,0.0003589,2]
[358973675,1745596264289,-835.5,0.0003589,2]
[358973676,1745596264300,-500.0,0.0003589,2]
[358973677,1745596264310,-1101.5,0.0003589,2]
[358973678,1745596264321,-614.21,0.0003589,2]
[358973679,1745596264331,-758.04,0.0003589,2]
[358973680,1745596264342,-500.0,0.0003589,2]
[358973681,1745596264352,-747.79,0.0003589,2]
[358973682,1745596264362,-500.0,0.0003589,2]
[358973683,1745596264372,-181.88391241,0.0003589,2]
[358973684,1745596264383,-500.0,0.0003589,2]
[358973685,1745596264393,-596.41,0.0003589,2]
[358973686,1745596264404,-291.162233,0.0003589,7]
[358973687,1745596264415,-584.17,0.0003589,2]
[358973688,1745596264424,-793.54,0.0003589,2]
[358973689,1745596264435,-1097.7,0.0003589,2]
[358973690,1745596264446,-517.79685938,0.0003589,2]
[358973691,1745596264457,-500.0,0.0003589,2]
[358973692,1745596264467,-596.75,0.0003589,2]
[358973693,1745596264478,-838.33,0.0003589,2]
[358973694,1745596264490,-952.28,0.0003589,2]
[358973695,1745596264500,-151.0,0.0003589,7]
[358973696,1745596264511,-500.0,0.0003589,2]
[358973697,1745596264521,-151.0,0.0003589,7]
[358973698,1745596264532,-1088.84,0.0003589,2]
[358973699,1745596264543,-886.75,0.0003589,2]
[358973700,1745596264554,-1095.86,0.0003589,2]
[358973701,1745596264565,-500.0,0.0003589,2]
[358973702,1745596264576,-866.88,0.0003589,2]
[358973703,1745596264586,-500.0,0.0003589,2]
[358973704,1745596264597,-272.34739305,0.0003589,2]
[358973705,1745596264607,-519.52,0.0003589,2]
[358973706,1745596264617,-173.153948,0.0003589,7]
[358973707,1745596264627,-500.0,0.0003589,2]
[358973708,1745596264637,-517.95,0.0003589,2]
[358973709,1745596264647,-500.0,0.0003589,2]
[358973710,1745596264658,-763.78,0.0003589,2]
[358973711,1745596264669,-500.0,0.0003589,2]
[358973712,1745596264679,-500.0,0.0003589,2]
[358973713,1745596264691,-173.153948,0.0003589,7]
[358973714,1745596264703,-754.68,0.0003589,2]
[358973715,1745596264714,-500.0,0.0003589,2]
[358973716,1745596264724,-272.620426,0.0003589,7]
[358973717,1745596264736,-500.0,0.0003589,2]
[358973718,1745596264746,-500.0,0.0003589,2]
[358973719,1745596264757,-272.620426,0.0003589,7]
[358973720,1745596264767,-500.0,0.0003589,2]
[358973721,1745596264777,-500.0,0.0003589,2]
[358973722,1745596264787,-517.63,0.0003589,2]
[358973723,1745596264798,-500.0,0.0003589,2]
[358973724,1745596264808,-205.71904918,0.0003589,2]
[358973725,1745596264819,-344.584627,0.0003589,7]
[358973726,1745596264829,-500.0,0.0003589,2]
[358973727,1745596264839,-151.0,0.0003589,7]
[358973728,1745596264851,-344.584627,0.0003589,7]
[358973729,1745596264861,-500.0,0.0003589,2]
[358973730,1745596264871,-500.0,0.0003589,2]
[358973731,1745596264882,-995.31,0.0003589,2]
[358973732,1745596264893,-523.73,0.0003589,2]
[358973733,1745596264904,-500.0,0.0003589,2]
[358973734,1745596264915,-469.32497562,0.0003589,2]
[358973735,1745596264927,-741.36,0.0003589,2]
[358973736,1745596264938,-500.0,0.0003589,2]
[358973737,1745596264949,-695.09,0.0003589,2]
[358973738,1745596264959,-500.0,0.0003589,2]
[358973739,1745596264969,-500.0,0.0003589,2]
[358973740,1745596264980,-500.0,0.0003589,2]
[358973741,1745596264991,-737.01,0.0003589,2]
[358973742,1745596265000,-925.3,0.0003589,2]
[358973743,1745596265011,-500.0,0.0003589,2]
[358973744,1745596265021,-1035.06,0.0003589,2]
[358973745,1745596265031,-611.19,0.0003589,2]
[358973746,1745596265042,-1021.89,0.0003589,2]
[358973747,1745596265052,-622.98,0.0003589,2]
[358973748,1745596265062,-848.46,0.0003589,2]
[358973749,1745596265073,-151.58162027,0.0003589,2]
[358973750,1745596265083,-500.0,0.0003589,2]
[358973751,1745596265093,-500.0,0.0003589,2]
[358973752,1745596265103,-500.0,0.0003589,2]
[358973753,1745596265112,-896.54,0.0003589,2]
[358973754,1745596265122,-520.51331242,0.0003589,2]
[358973755,1745596265132,-500.0,0.0003589,2]
[358973756,1745596265142,-627.49,0.0003589,2]
[358973757,1745596265151,-500.0,0.0003589,2]
[358973758,1745596265162,-500.0,0.0003589,2]
[358973759,1745596265174,-500.0,0.0003589,2]
[358973760,1745596265186,-500.0,0.0003589,2]
[358973761,1745596265196,-500.0,0.0003589,2]
[358973762,1745596265206,-1429.16,0.0003589,2]
[358973763,1745596265218,-500.0,0.0003589,2]
[358973764,1745596265230,-500.0,0.0003589,2]
[358973765,1745596265241,-1250.0,0.0003589,7]
[358973766,1745596265253,-500.0,0.0003589,2]
[358973767,1745596265264,-500.0,0.0003589,2]
[358973768,1745596265276,-500.0,0.0003589,2]
[358973769,1745596265286,-500.0,0.0003589,2]
[358973770,1745596265297,-1374.55,0.0003589,2]
[358973771,1745596265309,-758.78,0.0003589,2]
[358973772,1745596265321,-500.0,0.0003589,2]
[358973773,1745596265331,-500.0,0.0003589,2]
[358973774,1745596265341,-1287.42,0.0003589,2]
[358973775,1745596265352,-574.19,0.0003589,2]
[358973776,1745596265362,-575.31095278,0.0003589,2]
[358973777,1745596265373,-769.52,0.0003589,2]
[358973778,1745596265383,-1802.62,0.0003589,2]
[358973779,1745596265394,-500.0,0.0003589,2]
[358973780,1745596265404,-672.16,0.0003589,2]
[358973781,1745596265416,-526.81,0.0003589,2]
[358973782,1745596265426,-760.57,0.0003589,2]
[358973783,1745596265436,-500.0,0.0003589,2]
[358973784,1745596265446,-951.4,0.0003589,2]
[358973785,1745596265457,-500.0,0.0003589,2]
[358973786,1745596265468,-500.0,0.0003589,2]
[358973787,1745596265478,-151.0,0.0003589,7]
[358973788,1745596265488,-343.80884306,0.0003589,2]
[358973789,1745596265498,-500.0,0.0003589,2]
[358973790,1745596265509,-151.0,0.0003589,7]
[358973791,1745596265519,-500.0,0.0003589,2]
[358973792,1745596265529,-1782.42,0.0003589,2]
[358973793,1745596265540,-500.0,0.0003589,2]
[358973794,1745596265550,-500.0,0.0003589,2]
[358973795,1745596265560,-500.0,0.0003589,2]
[358973796,1745596265570,-500.0,0.0003589,2]
[358973797,1745596265580,-1612.06,0.0003589,2]
[358973798,1745596265591,-500.0,0.0003589,2]
[358973799,1745596265602,-1182.92,0.0003589,2]
[358973800,1745596265613,-632.7,0.0003589,2]
[358973801,1745596265623,-500.0,0.0003589,2]
[358973802,1745596265635,-500.0,0.0003589,2]
[358973803,1745596265646,-592.45875097,0.0003589,2]
[358973804,1745596265657,-500.0,0.0003589,2]
[358973805,1745596265669,-500.0,0.0003589,2]
[358973806,1745596265681,-900.13,0.0003589,2]
[358973807,1745596265692,-500.0,0.0003589,2]
[358973808,1745596265707,-500.0,0.0003589,2]
[358973809,1745596265718,-500.0,0.0003589,2]
[358973810,1745596265728,-500.0,0.0003589,2]
[358973811,1745596265741,-741.18,0.0003589,2]
[358973812,1745596265753,-500.0,0.0003589,2]
[358973813,1745596265764,-500.0,0.0003589,2]
[358973814,1745596265777,-516.03,0.0003589,2]
[358973815,1745596265787,-956.94,0.0003589,2]
[358973816,1745596265797,-569.42,0.0003589,2]
[358973817,1745596265807,-500.0,0.0003589,2]
[358973818,1745596265817,-564.21574373,0.0003589,2]
[358973819,1745596265828,-151.0,0.0003589,7]
[358973820,1745596265839,-500.0,0.0003589,2]
[358973821,1745596265850,-500.0,0.0003589,2]
[358973822,1745596265864,-500.0,0.0003589,2]
[358973823,1745596265875,-2654.69,0.0003589,2]
[358973824,1745596265887,-500.0,0.0003589,2]
[358973825,1745596265898,-151.0,0.0003589,7]
[358973826,1745596265908,-500.0,0.0003589,2]
[358973827,1745596265919,-500.0,0.0003589,2]
[358973828,1745596265929,-919.43,0.0003589,2]
[358973829,1745596265943,-1883.46,0.0003589,2]
[358973830,1745596265953,-618.76,0.0003589,2]
[358973831,1745596265964,-515.46726727,0.0003589,2]
[358973832,1745596265974,-500.0,0.0003589,2]
[358973833,1745596265984,-509.67879043,0.0003589,2]
[358973834,1745596265994,-500.0,0.0003589,2]
[358973835,1745596266005,-614.63,0.0003589,2]
[358973836,1745596266015,-500.0,0.0003589,2]
[358973837,1745596266026,-832.02,0.0003589,2]
[358973838,1745596266036,-500.0,0.0003589,2]
[358973839,1745596266047,-500.0,0.0003589,2]
[358973840,1745596266058,-502.17,0.0003589,2]
[358973841,1745596266068,-500.0,0.0003589,2]
[358973842,1745596266079,-500.0,0.0003589,2]
[358973843,1745596266090,-500.0,0.0003589,2]
[358973844,1745596266101,-500.0,0.0003589,2]
[358973845,1745596266111,-639.36,0.0003589,2]
[358973846,1745596266123,-500.0,0.0003589,2]
[358973847,1745596266134,-500.0,0.0003589,2]
[358973848,1745596266144,-1006.73,0.0003589,2]
[358973849,1745596266155,-561.31768461,0.0003589,2]
[358973850,1745596266166,-500.0,0.0003589,2]
[358973851,1745596266177,-500.0,0.0003589,2]
[358973852,1745596266189,-500.0,0.0003589,2]
[358973853,1745596266199,-500.0,0.0003589,2]
[358973854,1745596266209,-500.0,0.0003589,2]
[358973855,1745596266219,-1041.99,0.0003589,2]
[358973856,1745596266230,-776.41,0.0003589,2]
[358973857,1745596266240,-500.0,0.0003589,2]
[358973858,1745596266250,-1081.14,0.0003589,2]
[358973859,1745596266260,-500.0,0.0003589,2]
[358973860,1745596266270,-525.89,0.0003589,2]
[358973861,1745596266281,-500.0,0.0003589,2]
[358973862,1745596266291,-524.24,0.0003589,2]
[358973863,1745596266302,-500.0,0.0003589,2]
[358973864,1745596266312,-500.0,0.0003589,2]
[358973865,1745596266323,-500.0,0.0003589,2]
[358973866,1745596266334,-151.0,0.0003589,7]
[358973867,1745596266344,-500.0,0.0003589,2]
[358973868,1745596266355,-500.0,0.0003589,2]
[358973869,1745596266366,-504.39,0.0003589,2]
[358973870,1745596266377,-500.0,0.0003589,2]
[358973871,1745596266388,-561.74,0.0003589,2]
[358973872,1745596266398,-500.0,0.0003589,2]
[358973873,1745596266409,-500.0,0.0003589,2]
[358973874,1745596266419,-151.0,0.0003589,7]
[358973875,1745596266430,-920.21,0.0003589,2]
[358973876,1745596266672,-500.0,0.0003589,2]
[358973877,1745596266716,-813.0,0.0003589,2]
[358973878,1745596266746,-500.0,0.0003589,2]
[358973879,1745596266756,-373.99875856,0.0003589,2]
[358973880,1745596266766,-1015.4,0.0003589,2]
[358973881,1745596266776,-513.98701118,0.0003589,2]
[358973882,1745596266786,-500.0,0.0003589,2]
[358973883,1745596266796,-500.0,0.0003589,2]
[358973884,1745596266805,-500.0,0.0003589,2]
[358973885,1745596266815,-552.09718626,0.0003589,2]
[358973886,1745596266824,-500.0,0.0003589,2]
[358973887,1745596266834,-547.61,0.0003589,2]
[358973888,1745596266843,-544.83644034,0.0003589,2]
[358973889,1745596266853,-500.0,0.0003589,2]
[358973890,1745596266862,-641.3,0.0003589,2]
[358973891,1745596266872,-372.74929634,0.0003589,2]
[358973892,1745596266881,-500.0,0.0003589,2]
[358973893,1745596266891,-500.0,0.0003589,2]
[358973894,1745596266900,-544.75486638,0.0003589,2]
[358973895,1745596266910,-734.2,0.0003589,2]
[358973896,1745596266919,-500.0,0.0003589,2]
[358973897,1745596266929,-1041.16,0.0003589,2]
[358973898,1745596266940,-500.0,0.0003589,2]
[358973899,1745596266950,-575.34996929,0.0003589,2]
[358973900,1745596266959,-910.03,0.0003589,2]
[358973901,1745596266970,-500.0,0.0003589,2]
[358973902,1745596266980,-998.14,0.0003589,2]
[358973903,1745596266990,-1522.7742,0.0003589,7]
[358973904,1745596267001,-629.88219425,0.0003589,2]
[358973905,1745596267011,-151.0,0.0003589,7]
[358973906,1745596267022,-500.0,0.0003589,2]
[358973907,1745596267032,-500.0,0.0003589,2]
[358973908,1745596267043,-1039.58,0.0003589,2]
[358973909,1745596267053,-500.0,0.0003589,2]
[358973910,1745596267066,-500.0,0.0003589,2]
[358973911,1745596267075,-679.77,0.0003589,2]
[358973912,1745596267086,-500.0,0.0003589,2]
[358973913,1745596267096,-1522.7742,0.0003589,7]
[358973914,1745596267106,-500.0,0.0003589,2]
[358973915,1745596267115,-500.0,0.0003589,2]
[358973916,1745596267125,-377.36224764,0.0003589,2]
[358973917,1745596267136,-1023.59,0.0003589,2]
[358973918,1745596267146,-780.74,0.0003589,2]
[358973919,1745596267155,-500.0,0.0003589,2]
[358973920,1745596267165,-500.0,0.0003589,2]
[358973921,1745596267175,-553.9,0.0003589,2]
[358973922,1745596267185,-967.82,0.0003589,2]
[358973923,1745596267195,-500.0,0.0003589,2]
[358973924,1745596267205,-500.0,0.0003589,2]
[358973925,1745596267214,-500.0,0.0003589,2]
[358973926,1745596267224,-500.0,0.0003589,2]